fUST/lending_fUST_20250702
["ID","MTS","AMOUNT","RATE_DAILY","PERIOD"]
[369060584,1751448634718,-460.0,0.00016438,2]
[369060585,1751448634728,-480.20217855,0.00016438,2]
[369060586,1751448634738,-460.0,0.00016438,2]
[369060587,1751448634747,-945.26,0.00016438,2]
[369060588,1751448634757,-460.0,0.00016438,2]
[369060589,1751448634766,-460.0,0.00016438,2]
[369060590,1751448634774,-460.0,0.00016438,2]
[369060591,1751448634783,-460.0,0.00016438,2]
[369060592,1751448634791,-460.0,0.00016438,2]
[369060593,1751448634800,-816.42,0.00016438,2]
[369060594,1751448634810,-460.0,0.00016438,2]
[369060595,1751448634819,-460.0,0.00016438,2]
[369060596,1751448634828,-460.0,0.00016438,2]
[369060597,1751448634838,-500.0,0.00016438,2]
[369060598,1751448634847,-500.0,0.00016438,2]
[369060599,1751448634856,-500.0,0.00016438,2]
[369060600,1751448634866,-431.40320244,0.00016438,2]
[369060601,1751448634876,-460.0,0.00016438,2]
[369060602,1751448634885,-521.7,0.00016438,2]
[369060603,1751448634896,-460.0,0.00016438,2]
[369060604,1751448634906,-460.0,0.00016438,2]
[369060605,1751448634915,-460.0,0.00016438,2]
[369060606,1751448634926,-460.0,0.00016438,2]
[369060607,1751448634936,-726.91,0.00016438,2]
[369060608,1751448634946,-460.0,0.00016438,2]
[369060609,1751448634955,-460.0,0.00016438,2]
[369060610,1751448634965,-357.24590262,0.00016438,2]
[369060611,1751448634975,-460.0,0.00016438,2]
[369060612,1751448634984,-460.0,0.00016438,2]
[369060613,1751448635003,-460.0,0.00016438,2]
[369060614,1751448635018,-460.0,0.00016438,2]
[369060615,1751448635028,-439.76355399,0.00016438,2]
[369060616,1751448635038,-460.0,0.00016438,2]
[369060617,1751448635048,-542.8,0.00016438,2]
[369060618,1751448635057,-460.0,0.00016438,2]
[369060619,1751448635067,-572.39741055,0.00016438,2]
[369060620,1751448635077,-460.0,0.00016438,2]
[369060621,1751448635086,-5280.05,0.00016438,2]
[369060622,1751448635095,-460.0,0.00016438,2]
[369060623,1751448635105,-274.88250322,0.00016438,2]
[369060624,1751448635115,-1110.18,0.00016438,2]
[369060625,1751448635125,-460.0,0.00016438,2]
[369060626,1751448635135,-460.0,0.00016438,2]
[369060627,1751448635144,-460.0,0.00016438,2]
[369060628,1751448635154,-460.0,0.00016438,2]
[369060629,1751448635163,-460.0,0.00016438,2]
[369060630,1751448635173,-460.0,0.00016438,2]
[369060631,1751448635183,-460.0,0.00016438,2]
[369060632,1751448635193,-526.57,0.00016438,2]
[369060633,1751448635202,-460.0,0.00016438,2]
[369060634,1751448635212,-460.0,0.00016438,2]
[369060635,1751448635221,-460.0,0.00016438,2]
[369060636,1751448635231,-1737.72,0.00016438,2]
[369060637,1751448635241,-460.0,0.00016438,2]
[369060638,1751448635250,-460.0,0.00016438,2]
[369060639,1751448635260,-460.0,0.00016438,2]
[369060640,1751448635269,-460.0,0.00016438,2]
[369060641,1751448635278,-460.0,0.00016438,2]
[369060642,1751448635287,-3448.81,0.00016438,2]
[369060643,1751448635297,-773.83,0.00016438,2]
[369060644,1751448635307,-460.0,0.00016438,2]
[369060645,1751448635320,-798.89,0.00016438,2]
[369060646,1751448635330,-460.0,0.00016438,2]
[369060647,1751448635341,-1601.52,0.00016438,2]
[369060648,1751448635350,-460.0,0.00016438,2]
[369060649,1751448635364,-460.0,0.00016438,2]
[369060650,1751448635374,-2.25502522,0.00016438,2]
[369060677,1751448638281,-500.0,0.00016429,2]
[369060678,1751448638291,-500.0,0.00016429,2]
[369060679,1751448638300,-500.0,0.00016429,2]
[369060680,1751448638310,-500.0,0.00016429,2]
[369060681,1751448638320,-500.0,0.00016429,2]
[369060682,1751448638329,-500.0,0.00016429,2]
[369060683,1751448638338,-500.0,0.00016429,2]
[369060684,1751448638348,-500.0,0.00016429,2]
[369060685,1751448638357,-500.0,0.00016429,2]
[369060686,1751448638366,-500.0,0.00016429,2]
[369060687,1751448638376,-460.5,0.00016429,2]
[369060688,1751448638386,-500.0,0.00016429,2]
[369060689,1751448638395,-500.0,0.00016429,2]
[369060690,1751448638404,-239.63075264,0.00016429,2]
[369060691,1751448638413,-500.0,0.00016429,2]
[369060692,1751448638422,-512.92152478,0.00016429,2]
[369060693,1751448638431,-500.0,0.00016429,2]
[369060694,1751448638441,-500.0,0.00016429,2]
[369060695,1751448638450,-374.0,0.00016429,2]
[369060696,1751448638460,-500.0,0.00016429,2]
[369060697,1751448638469,-231.28254327,0.00016429,2]
[369060698,1751448638478,-500.0,0.00016429,2]
[369060699,1751448638488,-500.0,0.00016429,2]
[369060700,1751448638497,-500.0,0.00016429,2]
[369060701,1751448638506,-500.0,0.00016429,2]
[369060702,1751448638515,-500.0,0.00016429,2]
[369060703,1751448638525,-500.0,0.00016429,2]
[369060704,1751448638536,-500.0,0.00016429,2]
[369060705,1751448638545,-500.0,0.00016429,2]
[369060706,1751448638555,-500.0,0.00016429,2]
[369060707,1751448638565,-500.0,0.00016429,2]
[369060708,1751448638574,-406.59293801,0.00016429,2]
[369060709,1751448638585,-439.9783816,0.00016429,2]
[369060710,1751448638594,-500.0,0.00016429,2]
[369060711,1751448638603,-500.0,0.00016429,2]
[369060712,1751448638613,-500.0,0.00016429,2]
[369060713,1751448638624,-500.0,0.00016429,2]
[369060714,1751448638636,-500.0,0.00016429,2]
[369060715,1751448638645,-500.0,0.00016429,2]
[369060716,1751448638654,-500.0,0.00016429,2]
[369060717,1751448638663,-500.0,0.00016429,2]
[369060718,1751448638675,-500.0,0.00016429,2]
[369060719,1751448638684,-500.0,0.00016429,2]
[369060720,1751448638694,-500.0,0.00016429,2]
[369060721,1751448638706,-500.0,0.00016429,2]
[369060722,1751448638716,-500.0,0.00016429,2]
[369060723,1751448638726,-500.0,0.00016429,2]
[369060724,1751448638736,-979.60497478,0.00016438,2]
[369060725,1751448638745,-460.0,0.00016438,2]
[369060726,1751448638755,-460.0,0.00016438,2]
[369060727,1751448638764,-639.2,0.00016438,2]
[369060728,1751448638774,-460.0,0.00016438,2]
[369060729,1751448638784,-460.0,0.00016438,2]
[369060730,1751448638793,-460.0,0.00016438,2]
[369060731,1751448638803,-1779.81,0.00016438,2]
[369060732,1751448638813,-460.0,0.00016438,2]
[369060733,1751448638822,-419.98991125,0.00016438,2]
[369060734,1751448638832,-1252.66,0.00016438,2]
[369060735,1751448638841,-514.94,0.00016438,2]
[369060736,1751448638851,-460.0,0.00016438,2]
[369060737,1751448639030,-460.0,0.00016438,2]
[369060738,1751448639040,-460.0,0.00016438,2]
[369060739,1751448639050,-460.0,0.00016438,2]
[369060740,1751448639060,-543.32,0.00016438,2]
[369060741,1751448639069,-460.0,0.00016438,2]
[369060742,1751448639078,-3043.23,0.00016438,2]
[369060743,1751448639088,-460.0,0.00016438,2]
[369060744,1751448639097,-1039.31,0.00016438,2]
[369060745,1751448639106,-364.24198411,0.00016438,2]
[369060746,1751448639116,-460.0,0.00016438,2]
[369060747,1751448639125,-673.44,0.00016438,2]
[369060748,1751448639135,-460.0,0.00016438,2]
[369060749,1751448639144,-752.26,0.00016438,2]
[369060750,1751448639153,-460.0,0.00016438,2]
[369060751,1751448639163,-945.26,0.00016438,2]
[369060752,1751448639172,-493.22,0.00016438,2]
[369060753,1751448639181,-460.0,0.00016438,2]
[369060754,1751448639190,-460.0,0.00016438,2]
[369060755,1751448639200,-460.0,0.00016438,2]
[369060756,1751448639209,-460.0,0.00016438,2]
[369060757,1751448639219,-460.0,0.00016438,2]
[369060758,1751448639228,-460.0,0.00016438,2]
[369060759,1751448639237,-2036.78,0.00016438,2]
[369060760,1751448639246,-738.02,0.00016438,2]
[369060761,1751448639255,-850.18,0.00016438,2]
[369060762,1751448639264,-917.87,0.00016438,2]
[369060763,1751448639273,-460.0,0.00016438,2]
[369060764,1751448639282,-2796.63,0.00016438,2]
[369060765,1751448639291,-460.0,0.00016438,2]
[369060766,1751448639300,-460.0,0.00016438,2]
[369060767,1751448639309,-309.1644967,0.00016438,2]
[369060768,1751448639319,-460.0,0.00016438,2]
[369060769,1751448639327,-601.73,0.00016438,2]
[369060770,1751448639336,-465.30321502,0.00016438,2]
[369060771,1751448639346,-460.0,0.00016438,2]
[369060772,1751448639357,-460.0,0.00016438,2]
[369060773,1751448639366,-589.22378769,0.00016438,2]
[369060774,1751448639375,-460.0,0.00016438,2]
[369060775,1751448639385,-460.0,0.00016438,2]
[369060776,1751448639395,-556.49,0.00016438,2]
[369060777,1751448639405,-460.0,0.00016438,2]
[369060778,1751448639413,-704.62,0.00016438,2]
[369060779,1751448639421,-460.0,0.00016438,2]
[369060780,1751448639429,-460.0,0.00016438,2]
[369060781,1751448639438,-460.0,0.00016438,2]
[369060782,1751448639447,-460.0,0.00016438,2]
[369060783,1751448639456,-460.0,0.00016438,2]
[369060784,1751448639465,-918.17,0.00016438,2]
[369060785,1751448639474,-586.67,0.00016438,2]
[369060786,1751448639484,-2772.01,0.00016438,2]
[369060787,1751448639493,-4661.58,0.00016438,2]
[369060788,1751448639502,-460.0,0.00016438,2]
[369060789,1751448639511,-500.0,0.00016438,2]
[369060790,1751448639521,-460.0,0.00016438,2]
[369060791,1751448639530,-460.0,0.00016438,2]
[369060792,1751448639539,-460.0,0.00016438,2]
[369060793,1751448639548,-521.34,0.00016438,2]
[369060794,1751448639558,-690.26,0.00016438,2]
[369060795,1751448639567,-657.84,0.00016438,2]
[369060796,1751448639576,-4403.74,0.00016438,2]
[369060797,1751448639585,-763.68,0.00016438,2]
[369060798,1751448639595,-3041.35,0.00016438,2]
[369060799,1751448639604,-463.92278916,0.00016438,2]
[369060800,1751448639613,-460.0,0.00016438,2]
[369060801,1751448639622,-460.0,0.00016438,2]
[369060802,1751448639635,-1765.57,0.00016438,2]
[369060803,1751448639644,-460.0,0.00016438,2]
[369060804,1751448639654,-1237.16,0.00016438,2]
[369060805,1751448639663,-1222.14,0.00016438,2]
[369060806,1751448639673,-460.0,0.00016438,2]
[369060807,1751448639683,-460.0,0.00016438,2]
[369060808,1751448639693,-714.34,0.00016438,2]
[369060809,1751448639703,-460.0,0.00016438,2]
[369060810,1751448639712,-460.0,0.00016438,2]
[369060811,1751448639722,-703.87,0.00016438,2]
[369060812,1751448639731,-460.0,0.00016438,2]
[369060813,1751448639741,-646.36,0.00016438,2]
[369060814,1751448639751,-460.0,0.00016438,2]
[369060815,1751448639762,-460.0,0.00016438,2]
[369060816,1751448639771,-460.0,0.00016438,2]
[369060817,1751448639782,-460.3,0.00016438,2]
[369060818,1751448639791,-1387.48,0.00016438,2]
[369060819,1751448639800,-460.0,0.00016438,2]
[369060820,1751448639809,-460.0,0.00016438,2]
[369060821,1751448639819,-680.46,0.00016438,2]
[369060822,1751448639829,-460.0,0.00016438,2]
[369060823,1751448639840,-460.0,0.00016438,2]
[369060824,1751448639850,-1561.58,0.00016438,2]
[369060825,1751448639859,-1945.84,0.00016438,2]
[369060826,1751448639870,-460.0,0.00016438,2]
[369060827,1751448639879,-793.44,0.00016438,2]
[369060828,1751448639888,-6281.5,0.00016438,2]
[369060829,1751448639898,-460.0,0.00016438,2]
[369060830,1751448639907,-460.0,0.00016438,2]
[369060831,1751448639917,-1905.09,0.00016438,2]
[369060832,1751448639927,-580.0,0.00016438,2]
[369060833,1751448639937,-779.68,0.00016438,2]
[369060834,1751448639947,-460.0,0.00016438,2]
[369060835,1751448639957,-460.0,0.00016438,2]
[369060836,1751448639966,-460.0,0.00016438,2]
[369060837,1751448639976,-460.0,0.00016438,2]
[369060838,1751448639986,-460.0,0.00016438,2]
[369060839,1751448639995,-500.0,0.00016438,2]
[369060840,1751448640005,-166.0,0.00016438,2]
[369060841,1751448640014,-500.0,0.00016473,2]
[369060842,1751448640024,-378.14361845,0.00016473,2]
[369060843,1751448640033,-500.0,0.00016473,2]
[369060844,1751448640043,-500.0,0.00016473,2]
[369060845,1751448640052,-500.0,0.00016473,2]
[369060846,1751448640062,-500.0,0.00016473,2]
[369060847,1751448640072,-490.71279274,0.00016473,2]
[369060848,1751448640081,-500.61449702,0.00016473,2]
[369060849,1751448640096,-619.68484544,0.00016473,2]
[369060850,1751448640106,-500.0,0.00016473,2]
[369060851,1751448640115,-500.0,0.00016473,2]
[369060852,1751448640125,-500.0,0.00016473,2]
[369060853,1751448640134,-500.65512648,0.00016473,2]
[369060854,1751448640145,-500.0,0.00016473,2]
[369060855,1751448640154,-500.0,0.00016473,2]
[369060856,1751448640164,-151.0,0.00016612,2]
[369060857,1751448640173,-2241.72420648,0.00016612,2]
[369060858,1751448640183,-25294.0,0.00016612,2]
[369060859,1751448640193,-395.0045667,0.00016712,2]
[369060860,1751448640208,-64.9954333,0.00016712,2]
[369060861,1751448640218,-460.0,0.00016712,2]
[369060862,1751448640228,-460.0,0.00016712,2]
[369060863,1751448640237,-460.0,0.00016712,2]
[369060864,1751448640247,-460.0,0.00016712,2]
[369060865,1751448640257,-460.0,0.00016712,2]
[369060866,1751448640266,-460.0,0.00016712,2]
[369060867,1751448640275,-378.57872942,0.00016712,2]
[369060868,1751448640285,-460.0,0.00016712,2]
[369060869,1751448640295,-460.0,0.00016712,2]
[369060870,1751448640304,-460.0,0.00016712,2]
[369060871,1751448640314,-497.99254408,0.00016712,2]
[369060872,1751448640323,-460.0,0.00016712,2]
[369060873,1751448640334,-260.16920844,0.00016712,2]
[369060874,1751448640343,-676.41,0.00016712,2]
[369060875,1751448640352,-460.0,0.00016712,2]
[369060876,1751448640361,-567.17,0.00016712,2]
[369060877,1751448640370,-518.44,0.00016712,2]
[369060878,1751448640379,-460.0,0.00016712,2]
[369060879,1751448640388,-460.0,0.00016712,2]
[369060880,1751448640397,-460.0,0.00016712,2]
[369060881,1751448640407,-500.0,0.00016712,2]
[369060882,1751448640417,-557.63,0.00016712,2]
[369060883,1751448640426,-460.0,0.00016712,2]
[369060884,1751448640435,-460.0,0.00016712,2]
[369060885,1751448640444,-470.93813534,0.00016712,2]
[369060886,1751448640453,-460.0,0.00016712,2]
[369060887,1751448640463,-460.0,0.00016712,2]
[369060888,1751448640472,-460.0,0.00016712,2]
[369060889,1751448640482,-464.65583424,0.00016712,2]
[369060891,1751448640491,-460.0,0.00016712,2]
[369060892,1751448640502,-460.0,0.00016712,2]
[369060894,1751448640512,-460.0,0.00016712,2]
[369060896,1751448640522,-460.0,0.00016712,2]
[369060898,1751448640532,-460.0,0.00016712,2]
[369060900,1751448640541,-460.0,0.00016712,2]
[369060902,1751448640551,-460.0,0.00016712,2]
[369060903,1751448640560,-460.0,0.00016712,2]
[369060904,1751448640569,-460.0,0.00016712,2]
[369060905,1751448640579,-904.82,0.00016712,2]
[369060906,1751448640590,-460.0,0.00016712,2]
[369060907,1751448640599,-460.0,0.00016712,2]
[369060908,1751448640609,-460.0,0.00016712,2]
[369060910,1751448640618,-460.0,0.00016712,2]
[369060911,1751448640630,-460.0,0.00016712,2]
[369060913,1751448640639,-500.0,0.00016712,2]
[369060915,1751448640649,-460.0,0.00016712,2]
[369060917,1751448640658,-460.0,0.00016712,2]
[369060919,1751448640668,-460.0,0.00016712,2]
[369060920,1751448640678,-460.0,0.00016712,2]
[369060921,1751448640687,-197.76011633,0.00016712,2]
[369060922,1751448640697,-460.0,0.00016712,2]
[369060923,1751448640707,-460.0,0.00016712,2]
[369060924,1751448640717,-477.75,0.00016712,2]
[369060926,1751448640726,-460.0,0.00016712,2]
[369060928,1751448640735,-529.01966624,0.00016712,2]
[369060929,1751448640745,-766.81,0.00016712,2]
[369060931,1751448640754,-460.0,0.00016712,2]
[369060932,1751448640763,-460.0,0.00016712,2]
[369060933,1751448640772,-1086.24,0.00016712,2]
[369060934,1751448640781,-460.0,0.00016712,2]
[369060935,1751448640790,-608.67,0.00016712,2]
[369060936,1751448640799,-460.0,0.00016712,2]
[369060937,1751448640808,-460.0,0.00016712,2]
[369060938,1751448640818,-460.0,0.00016712,2]
[369060939,1751448640827,-460.0,0.00016712,2]
[369060940,1751448640836,-460.0,0.00016712,2]
[369060941,1751448640846,-460.0,0.00016712,2]
[369060942,1751448640855,-460.0,0.00016712,2]
[369060943,1751448640865,-460.0,0.00016712,2]
[369060944,1751448640873,-460.0,0.00016712,2]
[369060945,1751448640883,-460.0,0.00016712,2]
[369060946,1751448640892,-525.89238904,0.00016712,2]
[369060947,1751448640901,-460.0,0.00016712,2]
[369060948,1751448640911,-460.0,0.00016712,2]
[369060949,1751448640920,-460.0,0.00016712,2]
[369060950,1751448640929,-460.0,0.00016712,2]
[369060951,1751448640938,-466.17434458,0.00016712,2]
[369060952,1751448640948,-460.0,0.00016712,2]
[369060953,1751448640957,-460.0,0.00016712,2]
[369060954,1751448640967,-285.76345348,0.00016712,2]
[369060955,1751448640976,-460.0,0.00016712,2]
[369060956,1751448640986,-462.01930397,0.00016712,2]
[369060957,1751448640995,-460.0,0.00016712,2]
[369060958,1751448641005,-460.0,0.00016712,2]
[369060959,1751448641014,-460.0,0.00016712,2]
[369060960,1751448641024,-460.0,0.00016712,2]
[369060961,1751448641033,-460.0,0.00016712,2]
[369060962,1751448641043,-460.0,0.00016712,2]
[369060963,1751448641052,-460.0,0.00016712,2]
[369060964,1751448641061,-220.34290071,0.00016712,2]
[369060965,1751448641077,-141.00443921,0.00016712,2]
[369060966,1751448641088,-460.0,0.00016712,2]
[369060967,1751448641097,-460.0,0.00016712,2]
[369060968,1751448641107,-460.0,0.00016712,2]
[369060969,1751448641116,-460.0,0.00016712,2]
[369060970,1751448641125,-945.26,0.00016712,2]
[369060971,1751448641134,-460.0,0.00016712,2]
[369060972,1751448641144,-460.0,0.00016712,2]
[369060973,1751448641153,-460.0,0.00016712,2]
[369060974,1751448641162,-460.0,0.00016712,2]
[369060975,1751448641172,-816.42,0.00016712,2]
[369060976,1751448641181,-180.0,0.00016712,2]
[369060977,1751448641190,-460.0,0.00016712,2]
[369060978,1751448641200,-460.0,0.00016712,2]
[369060979,1751448641209,-460.0,0.00016712,2]
[369060980,1751448641218,-521.7,0.00016712,2]
[369060981,1751448641227,-460.0,0.00016712,2]
[369060982,1751448641236,-726.91,0.00016712,2]
[369060983,1751448641246,-460.0,0.00016712,2]
[369060984,1751448641255,-460.0,0.00016712,2]
[369060985,1751448641264,-492.57325781,0.00016712,2]
[369060986,1751448641274,-155.41460308,0.00016712,2]
[369060987,1751448641283,-542.8,0.00016712,2]
[369060988,1751448641293,-460.0,0.00016712,2]
[369060989,1751448641303,-5280.05,0.00016712,2]
[369060990,1751448641313,-1110.18,0.00016712,2]
[369060991,1751448641322,-460.0,0.00016712,2]
[369060992,1751448641332,-460.0,0.00016712,2]
[369060993,1751448641342,-460.0,0.00016712,2]
[369060994,1751448641351,-460.0,0.00016712,2]
[369060995,1751448641361,-460.0,0.00016712,2]
[369060996,1751448641370,-391.41712358,0.00016712,2]
[369060997,1751448641380,-81.60539409,0.00016712,2]
[369060998,1751448641392,-378.39460591,0.00016712,2]
[369060999,1751448641402,-460.0,0.00016712,2]
[369061000,1751448641411,-526.57,0.00016712,2]
[369061001,1751448641420,-460.0,0.00016712,2]
[369061002,1751448641430,-460.0,0.00016712,2]
[369061003,1751448641439,-1737.72,0.00016712,2]
[369061004,1751448641450,-460.0,0.00016712,2]
[369061005,1751448641460,-460.0,0.00016712,2]
[369061006,1751448641469,-460.0,0.00016712,2]
[369061007,1751448641478,-460.0,0.00016712,2]
[369061008,1751448641487,-3448.81,0.00016712,2]
[369061009,1751448641497,-773.83,0.00016712,2]
[369061010,1751448641506,-798.89,0.00016712,2]
[369061011,1751448641515,-460.0,0.00016712,2]
[369061012,1751448641525,-1601.52,0.00016712,2]
[369061013,1751448641534,-460.0,0.00016712,2]
[369061014,1751448641543,-460.0,0.00016712,2]
[369061015,1751448641553,-981.86,0.00016712,2]
[369061016,1751448641562,-375.19291036,0.00016712,2]
[369061017,1751448641571,-460.0,0.00016712,2]
[369061018,1751448641581,-639.2,0.00016712,2]
[369061019,1751448641590,-460.0,0.00016712,2]
[369061020,1751448641599,-460.0,0.00016712,2]
[369061021,1751448641609,-460.0,0.00016712,2]
[369061022,1751448641618,-1779.81,0.00016712,2]
[369061023,1751448641635,-1252.66,0.00016712,2]
[369061024,1751448641643,-514.94,0.00016712,2]
[369061025,1751448641652,-460.0,0.00016712,2]
[369061026,1751448641662,-460.0,0.00016712,2]
[369061027,1751448641672,-460.0,0.00016712,2]
[369061028,1751448641682,-543.32,0.00016712,2]
[369061029,1751448641691,-460.0,0.00016712,2]
[369061030,1751448641701,-3043.23,0.00016712,2]
[369061031,1751448641711,-460.0,0.00016712,2]
[369061032,1751448641720,-1039.31,0.00016712,2]
[369061033,1751448641729,-460.0,0.00016712,2]
[369061034,1751448641739,-673.44,0.00016712,2]
[369061035,1751448641748,-460.0,0.00016712,2]
[369061036,1751448641758,-752.26,0.00016712,2]
[369061037,1751448641768,-460.0,0.00016712,2]
[369061038,1751448641777,-945.26,0.00016712,2]
[369061039,1751448641787,-493.22,0.00016712,2]
[369061040,1751448641797,-460.0,0.00016712,2]
[369061041,1751448641808,-460.0,0.00016712,2]
[369061042,1751448641817,-460.0,0.00016712,2]
[369061043,1751448641827,-460.0,0.00016712,2]
[369061044,1751448641837,-460.0,0.00016712,2]
[369061045,1751448641847,-460.0,0.00016712,2]
[369061046,1751448641857,-2036.78,0.00016712,2]
[369061047,1751448641867,-738.02,0.00016712,2]
[369061048,1751448641876,-850.18,0.00016712,2]
[369061049,1751448641886,-917.87,0.00016712,2]
[369061050,1751448641895,-460.0,0.00016712,2]
[369061051,1751448641904,-2796.63,0.00016712,2]
[369061052,1751448641914,-271.42337978,0.00016712,2]
[369061053,1751448641923,-460.0,0.00016712,2]
[369061054,1751448641933,-601.73,0.00016712,2]
[369061055,1751448641943,-460.0,0.00016712,2]
[369061056,1751448641953,-460.0,0.00016712,2]
[369061057,1751448641962,-460.0,0.00016712,2]
[369061058,1751448641972,-460.0,0.00016712,2]
[369061059,1751448641981,-460.0,0.00016712,2]
[369061060,1751448641990,-556.49,0.00016712,2]
[369061061,1751448642000,-460.0,0.00016712,2]
[369061062,1751448642009,-704.62,0.00016712,2]
[369061063,1751448642019,-460.0,0.00016712,2]
[369061064,1751448642028,-460.0,0.00016712,2]
[369061065,1751448642037,-460.0,0.00016712,2]
[369061066,1751448642047,-460.0,0.00016712,2]
[369061067,1751448642056,-460.0,0.00016712,2]
[369061068,1751448642065,-918.17,0.00016712,2]
[369061069,1751448642074,-586.67,0.00016712,2]
[369061070,1751448642083,-4661.58,0.00016712,2]
[369061071,1751448642093,-2772.01,0.00016712,2]
[369061072,1751448642103,-460.0,0.00016712,2]
[369061073,1751448642112,-460.0,0.00016712,2]
[369061074,1751448642122,-460.0,0.00016712,2]
[369061075,1751448642132,-460.0,0.00016712,2]
[369061076,1751448642142,-521.34,0.00016712,2]
[369061077,1751448642152,-690.26,0.00016712,2]
[369061078,1751448642162,-657.84,0.00016712,2]
[369061079,1751448642171,-4403.74,0.00016712,2]
[369061080,1751448642180,-763.68,0.00016712,2]
[369061081,1751448642189,-3041.35,0.00016712,2]
[369061082,1751448642198,-460.0,0.00016712,2]
[369061083,1751448642208,-1765.57,0.00016712,2]
[369061084,1751448642217,-460.0,0.00016712,2]
[369061085,1751448642226,-1237.16,0.00016712,2]
[369061086,1751448642235,-1222.14,0.00016712,2]
[369061087,1751448642245,-460.0,0.00016712,2]
[369061088,1751448642255,-460.0,0.00016712,2]
[369061089,1751448642265,-714.34,0.00016712,2]
[369061090,1751448642274,-462.24184122,0.00016712,2]
[369061091,1751448642283,-703.87,0.00016712,2]
[369061092,1751448642292,-460.0,0.00016712,2]
[369061093,1751448642302,-646.36,0.00016712,2]
[369061094,1751448642311,-460.0,0.00016712,2]
[369061095,1751448642320,-460.0,0.00016712,2]
[369061096,1751448642329,-460.0,0.00016712,2]
[369061097,1751448642339,-460.0,0.00016712,2]
[369061098,1751448642348,-460.3,0.00016712,2]
[369061099,1751448642356,-1387.48,0.00016712,2]
[369061100,1751448642365,-165.33263828,0.00016712,2]
[369061101,1751448642374,-460.0,0.00016712,2]
[369061102,1751448642383,-680.46,0.00016712,2]
[369061103,1751448642392,-460.0,0.00016712,2]
[369061104,1751448642401,-460.0,0.00016712,2]
[369061105,1751448642410,-1561.58,0.00016712,2]
[369061106,1751448642419,-1945.84,0.00016712,2]
[369061107,1751448642430,-460.0,0.00016712,2]
[369061108,1751448642439,-793.44,0.00016712,2]
[369061109,1751448642448,-6281.5,0.00016712,2]
[369061110,1751448642457,-323.59236353,0.00016712,2]
[369061111,1751448642468,-1905.09,0.00016712,2]
[369061112,1751448642478,-779.68,0.00016712,2]
[369061113,1751448642488,-460.0,0.00016712,2]
[369061114,1751448642497,-460.0,0.00016712,2]
[369061115,1751448642507,-460.0,0.00016712,2]
[369061116,1751448642516,-460.0,0.00016712,2]
[369061117,1751448642525,-460.0,0.00016712,2]
[369061118,1751448642534,-1369.74362974,0.00016753,2]
[369061119,1751448642544,-187.72859494,0.00016773,2]
[369061120,1751448642554,-503.09827523,0.00016773,2]
[369061121,1751448642563,-500.0,0.00016773,2]
[369061122,1751448642573,-500.70976765,0.00016773,2]
[369061123,1751448642718,-510.00365922,0.00016773,2]